[Event "Early-Titled-Tuesday-Blitz-March-05-2024"]
[Site "Chess.com"]
[Date "2024.03.05"]
[Round "8"]
[White "Hope_6"]
[Black "SnekkerAndersen"]
[Result "0-1"]
[WhiteElo "2807"]
[BlackElo "2664"]
[TimeControl "180+1"]
[EndTime "9:30:48 PST"]
[Termination "SnekkerAndersen won by resignation"]

1. e4 {[%clk 0:02:59]} 1... e6 {[%clk 0:03:00.3]} 2. d4 {[%clk 0:02:58.5]} 2...
d5 {[%clk 0:03:01.2]} 3. e5 {[%clk 0:02:58.4]} 3... c5 {[%clk 0:03:00.8]} 4. c3
{[%clk 0:02:59]} 4... Nc6 {[%clk 0:03:01.2]} 5. Nf3 {[%clk 0:02:59.5]} 5... Bd7
{[%clk 0:03:01.6]} 6. Be2 {[%clk 0:02:59.3]} 6... f6 {[%clk 0:02:59.9]} 7. O-O
{[%clk 0:02:56.2]} 7... fxe5 {[%clk 0:02:59]} 8. dxe5 {[%clk 0:02:56.5]} 8...
Qc7 {[%clk 0:02:59.2]} 9. Bf4 {[%clk 0:02:55.5]} 9... Nh6 {[%clk 0:02:57.2]} 10.
Na3 {[%clk 0:02:54.4]} 10... a6 {[%clk 0:02:57.1]} 11. Nc2 {[%clk 0:02:43.7]}
11... Nf7 {[%clk 0:02:52]} 12. Re1 {[%clk 0:02:41.3]} 12... O-O-O {[%clk
0:02:50.5]} 13. Bf1 {[%clk 0:02:18.9]} 13... Rg8 {[%clk 0:02:50.3]} 14. h4
{[%clk 0:02:02.9]} 14... g6 {[%clk 0:02:44.8]} 15. b4 {[%clk 0:02:01.4]} 15...
h6 {[%clk 0:02:44.7]} 16. bxc5 {[%clk 0:01:56.2]} 16... Bxc5 {[%clk 0:02:41.3]}
17. Ncd4 {[%clk 0:01:55.2]} 17... g5 {[%clk 0:02:41.5]} 18. hxg5 {[%clk
0:01:52.4]} 18... hxg5 {[%clk 0:02:40.7]} 19. Bg3 {[%clk 0:01:52.5]} 19... Kb8
{[%clk 0:02:36.8]} 20. Nxc6+ {[%clk 0:01:49.4]} 20... Bxc6 {[%clk 0:02:34.2]}
21. Nd4 {[%clk 0:01:49.7]} 21... Bxd4 {[%clk 0:02:28.9]} 22. cxd4 {[%clk
0:01:42.9]} 22... Nh6 {[%clk 0:02:29.1]} 23. Bd3 {[%clk 0:01:39.2]} 23... Rdf8
{[%clk 0:02:20.4]} 24. Rb1 {[%clk 0:01:37.1]} 24... Ka8 {[%clk 0:02:18.1]} 25.
Qh5 {[%clk 0:01:13.6]} 25... Nf5 {[%clk 0:02:15.9]} 26. Qg4 {[%clk 0:01:13.8]}
26... Qh7 {[%clk 0:02:11.9]} 27. f3 {[%clk 0:01:08.5]} 27... Qe7 {[%clk
0:01:59.9]} 28. Rb3 {[%clk 0:01:03.4]} 28... Ba4 {[%clk 0:01:48.8]} 29. Rb6
{[%clk 0:00:55.6]} 29... Nxg3 {[%clk 0:01:17.1]} 30. Qxg3 {[%clk 0:00:55.2]}
30... Qa3 {[%clk 0:01:17.8]} 31. Bxa6 {[%clk 0:00:45.2]} 31... Ka7 {[%clk
0:01:12.7]} 32. Rxb7+ {[%clk 0:00:35.9]} 32... Kxa6 {[%clk 0:01:12.8]} 33. Reb1
{[%clk 0:00:36.4]} 33... Qe3+ {[%clk 0:01:05.7]} 34. Qf2 {[%clk 0:00:36.4]}
34... Qxf2+ {[%clk 0:01:05.7]} 35. Kxf2 {[%clk 0:00:37.3]} 35... Bc2 {[%clk
0:00:50.1]} 36. R1b6+ {[%clk 0:00:36.3]} 36... Ka5 {[%clk 0:00:50.7]} 37. Rb2
{[%clk 0:00:32.7]} 37... Bd3 {[%clk 0:00:45.9]} 38. R2b3 {[%clk 0:00:33]} 38...
Ka6 {[%clk 0:00:40.6]} 39. R7b4 {[%clk 0:00:32.8]} 39... Ka5 {[%clk 0:00:35.4]}
40. Rb7 {[%clk 0:00:26]} 40... Ka6 {[%clk 0:00:35.6]} 41. R7b6+ {[%clk 0:00:22]}
41... Ka7 {[%clk 0:00:34.3]} 42. Rxe6 {[%clk 0:00:22]} 42... Bc4 {[%clk
0:00:31.8]} 43. Re7+ {[%clk 0:00:19.6]} 43... Ka6 {[%clk 0:00:31]} 44. Re6+
{[%clk 0:00:19.9]} 44... Ka5 {[%clk 0:00:29.9]} 45. Rb7 {[%clk 0:00:19.4]} 45...
Rb8 {[%clk 0:00:28]} 46. Ra7+ {[%clk 0:00:19.7]} 46... Kb4 {[%clk 0:00:27.3]}
47. Rc6 {[%clk 0:00:17.2]} 47... Kc3 {[%clk 0:00:27.4]} 48. e6 {[%clk
0:00:16.7]} 48... Kxd4 {[%clk 0:00:26]} 49. e7 {[%clk 0:00:17.3]} 49... Rge8
{[%clk 0:00:26.3]} 50. Rg6 {[%clk 0:00:16.1]} 50... Rb2+ {[%clk 0:00:18.9]} 51.
Kg3 {[%clk 0:00:16.2]} 51... Rxa2 {[%clk 0:00:19.1]} 52. Rxg5 {[%clk 0:00:14.4]}
52... Rxa7 {[%clk 0:00:18.7]} 0-1

[Event "Early-Titled-Tuesday-Blitz-March-05-2024"]
[Site "Chess.com"]
[Date "2024.03.05"]
[Round "8"]
[White "Volodar_Murzin"]
[Black "Hikaru"]
[Result "1-0"]
[WhiteElo "2980"]
[BlackElo "3259"]
[TimeControl "180+1"]
[EndTime "9:30:50 PST"]
[Termination "Volodar_Murzin won by resignation"]

1. d4 {[%clk 0:03:00.9]} 1... Nf6 {[%clk 0:02:56.3]} 2. Nf3 {[%clk 0:03:01]}
2... b6 {[%clk 0:02:53.2]} 3. Bg5 {[%clk 0:03:00.1]} 3... Bb7 {[%clk 0:02:52.3]}
4. Nbd2 {[%clk 0:03:00.1]} 4... d6 {[%clk 0:02:50.6]} 5. Bxf6 {[%clk 0:02:54.5]}
5... gxf6 {[%clk 0:02:49.9]} 6. e4 {[%clk 0:02:53.7]} 6... e6 {[%clk 0:02:49.8]}
7. Bd3 {[%clk 0:02:52.7]} 7... Nd7 {[%clk 0:02:47.7]} 8. Qe2 {[%clk 0:02:52.9]}
8... a6 {[%clk 0:02:47.9]} 9. O-O-O {[%clk 0:02:46.4]} 9... c5 {[%clk
0:02:45.6]} 10. Kb1 {[%clk 0:02:45.3]} 10... Qc7 {[%clk 0:02:41.3]} 11. c4
{[%clk 0:02:23]} 11... O-O-O {[%clk 0:02:30.7]} 12. d5 {[%clk 0:02:19]} 12...
Re8 {[%clk 0:02:30]} 13. Qf1 {[%clk 0:02:09.2]} 13... Bg7 {[%clk 0:02:29.8]} 14.
h4 {[%clk 0:02:03.5]} 14... Kb8 {[%clk 0:02:26.4]} 15. h5 {[%clk 0:02:03.5]}
15... Bh6 {[%clk 0:01:58.8]} 16. Rh3 {[%clk 0:01:58.1]} 16... Rhg8 {[%clk
0:01:49.4]} 17. Ka1 {[%clk 0:01:57.2]} 17... Bc8 {[%clk 0:01:44.4]} 18. Nb1
{[%clk 0:01:56.1]} 18... Ne5 {[%clk 0:01:43.6]} 19. Nc3 {[%clk 0:01:52.6]} 19...
Nxd3 {[%clk 0:01:14.5]} 20. Rxd3 {[%clk 0:01:53.5]} 20... f5 {[%clk 0:01:14.9]}
21. exf5 {[%clk 0:01:31.6]} 21... exf5 {[%clk 0:01:12.7]} 22. Rh1 {[%clk
0:01:24.6]} 22... Bg7 {[%clk 0:01:10.3]} 23. Qc1 {[%clk 0:01:14.3]} 23... Bf6
{[%clk 0:01:03.2]} 24. g3 {[%clk 0:01:01.4]} 24... Rg4 {[%clk 0:01:00.8]} 25.
Nd2 {[%clk 0:01:01.7]} 25... Bd7 {[%clk 0:00:56.8]} 26. Nd1 {[%clk 0:00:55]}
26... b5 {[%clk 0:00:53.1]} 27. Ne3 {[%clk 0:00:54.3]} 27... Rd4 {[%clk
0:00:53.8]} 28. Rb3 {[%clk 0:00:48.5]} 28... b4 {[%clk 0:00:43.7]} 29. Nc2
{[%clk 0:00:44.1]} 29... Rg4 {[%clk 0:00:43.9]} 30. Re3 {[%clk 0:00:43.7]} 30...
Reg8 {[%clk 0:00:41.4]} 31. Rf3 {[%clk 0:00:39.5]} 31... a5 {[%clk 0:00:33.6]}
32. Ne3 {[%clk 0:00:37.9]} 32... R4g5 {[%clk 0:00:34.2]} 33. Ne4 {[%clk
0:00:33.5]} 33... Be5 {[%clk 0:00:22.4]} 34. Nxg5 {[%clk 0:00:31.9]} 34... Rxg5
{[%clk 0:00:23.3]} 35. Ng2 {[%clk 0:00:27.8]} 35... h6 {[%clk 0:00:23.4]} 36.
Nf4 {[%clk 0:00:27.3]} 36... a4 {[%clk 0:00:23.1]} 37. Kb1 {[%clk 0:00:25.4]}
37... Qd8 {[%clk 0:00:20.6]} 38. Re1 {[%clk 0:00:25.7]} 38... Qf6 {[%clk
0:00:19.8]} 39. a3 {[%clk 0:00:19.5]} 39... b3 {[%clk 0:00:17.3]} 40. Nd3 {[%clk
0:00:17.8]} 40... Bd4 {[%clk 0:00:17.5]} 41. Nf4 {[%clk 0:00:18.3]} 41... Rg8
{[%clk 0:00:15.6]} 42. Qd2 {[%clk 0:00:11.1]} 42... Kb7 {[%clk 0:00:16.1]} 43.
Rd3 {[%clk 0:00:09.7]} 43... Be5 {[%clk 0:00:15.8]} 44. Rde3 {[%clk 0:00:09.3]}
44... Qd8 {[%clk 0:00:08.4]} 45. Rxe5 {[%clk 0:00:08.1]} 45... dxe5 {[%clk
0:00:08.2]} 46. Rxe5 {[%clk 0:00:09]} 46... Qf6 {[%clk 0:00:08]} 47. Qe3 {[%clk
0:00:08.9]} 47... Rg4 {[%clk 0:00:06.9]} 48. Re7 {[%clk 0:00:08.3]} 48... Qd6
{[%clk 0:00:07.3]} 49. Qe5 {[%clk 0:00:08.3]} 49... Qxe5 {[%clk 0:00:06.5]} 50.
Rxe5 {[%clk 0:00:09.2]} 50... Kc7 {[%clk 0:00:07.2]} 51. Re7 {[%clk 0:00:09.8]}
51... Rg7 {[%clk 0:00:07.7]} 52. Ne6+ {[%clk 0:00:09.5]} 52... Kd6 {[%clk
0:00:08.3]} 53. Rxd7+ {[%clk 0:00:09]} 1-0

[Event "Early-Titled-Tuesday-Blitz-March-05-2024"]
[Site "Chess.com"]
[Date "2024.03.05"]
[Round "8"]
[White "Smoking_Crow"]
[Black "ilqar_74"]
[Result "0-1"]
[WhiteElo "2626"]
[BlackElo "2833"]
[TimeControl "180+1"]
[EndTime "9:30:55 PST"]
[Termination "ilqar_74 won on time"]

1. d4 {[%clk 0:03:00.9]} 1... Nf6 {[%clk 0:02:59.9]} 2. c4 {[%clk 0:03:00.6]}
2... g6 {[%clk 0:02:59.7]} 3. Nc3 {[%clk 0:03:00.5]} 3... Bg7 {[%clk 0:02:59.3]}
4. e4 {[%clk 0:03:00.5]} 4... d6 {[%clk 0:02:59.7]} 5. Nf3 {[%clk 0:02:55.6]}
5... O-O {[%clk 0:02:59.2]} 6. Be2 {[%clk 0:02:55.2]} 6... Nbd7 {[%clk
0:02:59.3]} 7. O-O {[%clk 0:02:53]} 7... e5 {[%clk 0:02:58.3]} 8. d5 {[%clk
0:02:50.3]} 8... Qe7 {[%clk 0:02:55.1]} 9. b4 {[%clk 0:02:42]} 9... a5 {[%clk
0:02:53.1]} 10. bxa5 {[%clk 0:02:41.5]} 10... Nc5 {[%clk 0:02:52.2]} 11. Qc2
{[%clk 0:02:21.6]} 11... Rxa5 {[%clk 0:02:45.1]} 12. Be3 {[%clk 0:02:05.7]}
12... Ng4 {[%clk 0:02:43.6]} 13. Bxc5 {[%clk 0:02:03.4]} 13... Rxc5 {[%clk
0:02:39.4]} 14. Nd2 {[%clk 0:02:00.8]} 14... Ra5 {[%clk 0:02:35.5]} 15. Nb3
{[%clk 0:02:00.8]} 15... Ra8 {[%clk 0:02:35.4]} 16. a4 {[%clk 0:01:51.1]} 16...
f5 {[%clk 0:02:31.7]} 17. Bxg4 {[%clk 0:01:50.4]} 17... fxg4 {[%clk 0:02:31.8]}
18. Qe2 {[%clk 0:01:41.9]} 18... h5 {[%clk 0:02:30.3]} 19. Nd1 {[%clk
0:01:34.2]} 19... b6 {[%clk 0:02:28.3]} 20. Ne3 {[%clk 0:01:33.8]} 20... Bd7
{[%clk 0:02:27.7]} 21. a5 {[%clk 0:01:33.3]} 21... bxa5 {[%clk 0:02:27.6]} 22.
Nxa5 {[%clk 0:01:32.5]} 22... Qg5 {[%clk 0:02:26.2]} 23. Nc6 {[%clk 0:01:32.1]}
23... h4 {[%clk 0:02:25.4]} 24. Rab1 {[%clk 0:01:25.2]} 24... Bc8 {[%clk
0:02:16.9]} 25. g3 {[%clk 0:01:20.3]} 25... Rf3 {[%clk 0:02:03]} 26. Rb4 {[%clk
0:00:59.2]} 26... Kh7 {[%clk 0:01:44.9]} 27. Rfb1 {[%clk 0:00:56.1]} 27... Ra3
{[%clk 0:01:41.1]} 28. Ng2 {[%clk 0:00:48.5]} 28... hxg3 {[%clk 0:01:31.8]} 29.
hxg3 {[%clk 0:00:46.8]} 29... Rad3 {[%clk 0:01:17.3]} 30. Ne1 {[%clk 0:00:32.3]}
30... Ra3 {[%clk 0:01:10.3]} 31. Rb8 {[%clk 0:00:20.1]} 31... Bd7 {[%clk
0:01:06.4]} 32. Nxf3 {[%clk 0:00:18.5]} 32... gxf3 {[%clk 0:01:05.7]} 33. Qf1
{[%clk 0:00:18.4]} 33... Qh5 {[%clk 0:01:01.3]} 34. R1b3 {[%clk 0:00:15.2]}
34... Rxb3 {[%clk 0:00:44.9]} 35. Rxb3 {[%clk 0:00:14.8]} 35... Bh3 {[%clk
0:00:43.5]} 36. Qxh3 {[%clk 0:00:14.6]} 36... Qxh3 {[%clk 0:00:43.2]} 37. Rxf3
{[%clk 0:00:15]} 37... Qg4 {[%clk 0:00:43.2]} 38. Re3 {[%clk 0:00:15.2]} 38...
Bh6 {[%clk 0:00:40.3]} 39. Ra3 {[%clk 0:00:12.3]} 39... Qxe4 {[%clk 0:00:37.6]}
40. Ra7 {[%clk 0:00:11.8]} 40... Qxc4 {[%clk 0:00:35.4]} 41. Rxc7+ {[%clk
0:00:11]} 41... Bg7 {[%clk 0:00:35.5]} 42. Rd7 {[%clk 0:00:10]} 42... Qxd5
{[%clk 0:00:33.9]} 43. Nd8 {[%clk 0:00:10.9]} 43... e4 {[%clk 0:00:25.8]} 44.
Nf7 {[%clk 0:00:10.4]} 44... Qf5 {[%clk 0:00:23.1]} 45. Re7 {[%clk 0:00:10.6]}
45... d5 {[%clk 0:00:20.8]} 46. Kg2 {[%clk 0:00:09.3]} 46... d4 {[%clk
0:00:18.8]} 47. Nd8 {[%clk 0:00:09.4]} 47... d3 {[%clk 0:00:15.7]} 0-1

[Event "Early-Titled-Tuesday-Blitz-March-05-2024"]
[Site "Chess.com"]
[Date "2024.03.05"]
[Round "8"]
[White "Dinosaurio_1975"]
[Black "amylazy"]
[Result "1-0"]
[WhiteElo "2595"]
[BlackElo "2417"]
[TimeControl "180+1"]
[EndTime "9:30:57 PST"]
[Termination "Dinosaurio_1975 won by checkmate"]

1. c4 {[%clk 0:03:00.9]} 1... Nf6 {[%clk 0:02:56.9]} 2. Nc3 {[%clk 0:02:58]}
2... d5 {[%clk 0:02:56.1]} 3. cxd5 {[%clk 0:02:57.2]} 3... Nxd5 {[%clk 0:02:57]}
4. g3 {[%clk 0:02:56.5]} 4... g6 {[%clk 0:02:56.6]} 5. Bg2 {[%clk 0:02:55.5]}
5... Nb6 {[%clk 0:02:57.5]} 6. Nf3 {[%clk 0:02:53.7]} 6... Bg7 {[%clk
0:02:57.7]} 7. O-O {[%clk 0:02:48.2]} 7... O-O {[%clk 0:02:57.6]} 8. d3 {[%clk
0:02:48.7]} 8... Nc6 {[%clk 0:02:56.8]} 9. Be3 {[%clk 0:02:49.2]} 9... e5 {[%clk
0:02:51.8]} 10. Rc1 {[%clk 0:02:46.2]} 10... Nd4 {[%clk 0:02:49.5]} 11. Re1
{[%clk 0:02:20.3]} 11... c6 {[%clk 0:02:48.8]} 12. Na4 {[%clk 0:02:16.2]} 12...
Be6 {[%clk 0:02:40.3]} 13. Nc5 {[%clk 0:01:59.7]} 13... Bxa2 {[%clk 0:02:24.9]}
14. b3 {[%clk 0:01:58]} 14... Nd7 {[%clk 0:02:06.3]} 15. Bxd4 {[%clk 0:01:47.6]}
15... exd4 {[%clk 0:02:05.6]} 16. Nxd7 {[%clk 0:01:48.2]} 16... Qxd7 {[%clk
0:02:05.3]} 17. Ra1 {[%clk 0:01:48.9]} 17... Bxb3 {[%clk 0:02:02.4]} 18. Qxb3
{[%clk 0:01:48]} 18... a5 {[%clk 0:01:58.1]} 19. Nd2 {[%clk 0:01:47]} 19... b5
{[%clk 0:01:56.1]} 20. Rec1 {[%clk 0:01:46.7]} 20... Rfc8 {[%clk 0:01:54.6]} 21.
Ne4 {[%clk 0:01:46.8]} 21... Qe7 {[%clk 0:01:43.6]} 22. Rc5 {[%clk 0:01:35.4]}
22... a4 {[%clk 0:01:41.2]} 23. Qb4 {[%clk 0:01:19.5]} 23... f5 {[%clk
0:01:40.5]} 24. Nd2 {[%clk 0:00:49.9]} 24... Bf8 {[%clk 0:01:40.1]} 25. Rac1
{[%clk 0:00:30.3]} 25... Qxe2 {[%clk 0:01:25.4]} 26. Nf3 {[%clk 0:00:16.5]}
26... a3 {[%clk 0:00:57.7]} 27. Qb3+ {[%clk 0:00:15.6]} 27... Kh8 {[%clk
0:00:54.9]} 28. R5c2 {[%clk 0:00:16.1]} 28... Qe7 {[%clk 0:00:41.5]} 29. Nxd4
{[%clk 0:00:15.3]} 29... Bg7 {[%clk 0:00:41.8]} 30. Nxc6 {[%clk 0:00:14.5]}
30... Qd6 {[%clk 0:00:38.9]} 31. Nb4 {[%clk 0:00:13.2]} 31... Rxc2 {[%clk
0:00:33]} 32. Rxc2 {[%clk 0:00:14.1]} 32... Re8 {[%clk 0:00:16.4]} 33. Qxa3
{[%clk 0:00:08.2]} 33... Re1+ {[%clk 0:00:15.9]} 34. Bf1 {[%clk 0:00:08.8]}
34... h6 {[%clk 0:00:15.9]} 35. Qb3 {[%clk 0:00:07]} 35... f4 {[%clk 0:00:11.1]}
36. Re2 {[%clk 0:00:06.5]} 36... Rxe2 {[%clk 0:00:10.1]} 37. Bxe2 {[%clk
0:00:07.4]} 37... Qe7 {[%clk 0:00:10.1]} 38. Bf1 {[%clk 0:00:05.5]} 38... fxg3
{[%clk 0:00:09.8]} 39. hxg3 {[%clk 0:00:04.9]} 39... h5 {[%clk 0:00:09.6]} 40.
Nd5 {[%clk 0:00:05.3]} 40... Qe6 {[%clk 0:00:09.4]} 41. Qxb5 {[%clk 0:00:05.3]}
41... Kh7 {[%clk 0:00:09.5]} 42. Nf4 {[%clk 0:00:05.6]} 42... Qg4 {[%clk
0:00:09.3]} 43. Be2 {[%clk 0:00:05]} 43... Qc8 {[%clk 0:00:08.2]} 44. Qg5 {[%clk
0:00:05.1]} 44... Qc6 {[%clk 0:00:07.7]} 45. d4 {[%clk 0:00:04.3]} 45... Qd6
{[%clk 0:00:06.8]} 46. d5 {[%clk 0:00:03.3]} 46... Bd4 {[%clk 0:00:05.6]} 47.
Bd3 {[%clk 0:00:02.6]} 47... Bxf2+ {[%clk 0:00:04.1]} 48. Kxf2 {[%clk
0:00:02.4]} 48... Qc5+ {[%clk 0:00:05]} 49. Kg2 {[%clk 0:00:02.9]} 49... Qe3
{[%clk 0:00:05.4]} 50. Qxg6+ {[%clk 0:00:03.8]} 50... Kh8 {[%clk 0:00:05.4]} 51.
Qh7# {[%clk 0:00:04.7]} 1-0

[Event "Early-Titled-Tuesday-Blitz-March-05-2024"]
[Site "Chess.com"]
[Date "2024.03.05"]
[Round "8"]
[White "ricaurtelopezj1955"]
[Black "nuadvaga"]
[Result "0-1"]
[WhiteElo "2136"]
[BlackElo "2180"]
[TimeControl "180+1"]
[EndTime "9:31:00 PST"]
[Termination "nuadvaga won on time"]

1. e4 {[%clk 0:02:53.6]} 1... e5 {[%clk 0:02:58]} 2. d4 {[%clk 0:02:54]} 2...
exd4 {[%clk 0:02:57.3]} 3. c3 {[%clk 0:02:53.5]} 3... d3 {[%clk 0:02:57.9]} 4.
Bxd3 {[%clk 0:02:51.6]} 4... Bc5 {[%clk 0:02:58.2]} 5. a4 {[%clk 0:02:47.1]}
5... a5 {[%clk 0:02:56.2]} 6. Nf3 {[%clk 0:02:41.7]} 6... d6 {[%clk 0:02:56]} 7.
O-O {[%clk 0:02:40.7]} 7... Bg4 {[%clk 0:02:56.2]} 8. h3 {[%clk 0:02:38.3]} 8...
Bh5 {[%clk 0:02:55.7]} 9. Be3 {[%clk 0:02:36]} 9... Nd7 {[%clk 0:02:54.8]} 10.
Bxc5 {[%clk 0:02:30.1]} 10... Nxc5 {[%clk 0:02:55.7]} 11. Bc2 {[%clk 0:02:28.1]}
11... Nf6 {[%clk 0:02:52.1]} 12. Nbd2 {[%clk 0:02:19.5]} 12... O-O {[%clk
0:02:49]} 13. b4 {[%clk 0:02:06]} 13... axb4 {[%clk 0:02:47.9]} 14. cxb4 {[%clk
0:02:00.9]} 14... Ne6 {[%clk 0:02:45.6]} 15. Qb1 {[%clk 0:01:45.9]} 15... Re8
{[%clk 0:02:35.7]} 16. Qb2 {[%clk 0:01:43]} 16... Nf4 {[%clk 0:02:33.5]} 17.
Rfe1 {[%clk 0:01:34.2]} 17... Bg6 {[%clk 0:02:20.9]} 18. Ra3 {[%clk 0:01:28]}
18... c6 {[%clk 0:02:09.8]} 19. Rae3 {[%clk 0:01:25.7]} 19... Qc7 {[%clk
0:01:59]} 20. Nf1 {[%clk 0:01:17.6]} 20... Nd7 {[%clk 0:01:36.7]} 21. Ng3 {[%clk
0:01:14.6]} 21... Ne5 {[%clk 0:01:34.1]} 22. Nh4 {[%clk 0:01:13.9]} 22... Nc4
{[%clk 0:01:28.8]} 23. Qc3 {[%clk 0:01:10.5]} 23... Nxe3 {[%clk 0:01:28.3]} 24.
fxe3 {[%clk 0:01:09.8]} 24... Ne6 {[%clk 0:01:14.4]} 25. Rd1 {[%clk 0:01:09.1]}
25... Rad8 {[%clk 0:01:06.2]} 26. Bb3 {[%clk 0:01:06.6]} 26... d5 {[%clk
0:01:02.9]} 27. exd5 {[%clk 0:01:03.8]} 27... Qxg3 {[%clk 0:01:02.7]} 28. Nxg6
{[%clk 0:00:58.4]} 28... Qxg6 {[%clk 0:00:52.2]} 29. dxe6 {[%clk 0:00:56.7]}
29... Rxd1+ {[%clk 0:00:52.8]} 30. Bxd1 {[%clk 0:00:53.9]} 30... Rxe6 {[%clk
0:00:51.8]} 31. Kf2 {[%clk 0:00:51.1]} 31... Qf6+ {[%clk 0:00:49]} 32. Qxf6
{[%clk 0:00:48.5]} 32... Rxf6+ {[%clk 0:00:49.9]} 33. Ke1 {[%clk 0:00:47.1]}
33... Kf8 {[%clk 0:00:50.5]} 34. Bg4 {[%clk 0:00:44.6]} 34... Ke7 {[%clk
0:00:50.6]} 35. a5 {[%clk 0:00:42.2]} 35... Kd8 {[%clk 0:00:49.2]} 36. Kd2
{[%clk 0:00:40.2]} 36... Rd6+ {[%clk 0:00:47.5]} 37. Kc2 {[%clk 0:00:37.9]}
37... Kc7 {[%clk 0:00:46.7]} 38. Bf5 {[%clk 0:00:36.2]} 38... g6 {[%clk
0:00:45.9]} 39. Be4 {[%clk 0:00:34.5]} 39... f5 {[%clk 0:00:45.6]} 40. Bf3
{[%clk 0:00:32.8]} 40... Re6 {[%clk 0:00:42.9]} 41. Kd3 {[%clk 0:00:31]} 41...
Re5 {[%clk 0:00:43.4]} 42. e4 {[%clk 0:00:26.1]} 42... fxe4+ {[%clk 0:00:38.9]}
43. Bxe4 {[%clk 0:00:26.4]} 43... Rg5 {[%clk 0:00:30.1]} 44. Kc4 {[%clk
0:00:24.1]} 44... Re5 {[%clk 0:00:23.6]} 45. Kd4 {[%clk 0:00:23.4]} 45... Re7
{[%clk 0:00:22]} 46. Kd3 {[%clk 0:00:19]} 46... Rf7 {[%clk 0:00:19.1]} 47. Kc4
{[%clk 0:00:18.6]} 47... Rf2 {[%clk 0:00:15]} 48. Kd4 {[%clk 0:00:17.3]} 48...
g5 {[%clk 0:00:10.3]} 49. Bxh7 {[%clk 0:00:07.3]} 49... Rxg2 {[%clk 0:00:10.2]}
50. Bf5 {[%clk 0:00:07.7]} 50... Rb2 {[%clk 0:00:08.7]} 51. Kc3 {[%clk
0:00:05.3]} 51... Rf2 {[%clk 0:00:09.3]} 52. Bg4 {[%clk 0:00:03.7]} 52... Rf4
{[%clk 0:00:09.3]} 53. Kb3 {[%clk 0:00:03]} 53... c5 {[%clk 0:00:09]} 0-1

[Event "Early-Titled-Tuesday-Blitz-March-05-2024"]
[Site "Chess.com"]
[Date "2024.03.05"]
[Round "8"]
[White "Manukyan_Artak"]
[Black "awesomevishesh"]
[Result "0-1"]
[WhiteElo "2524"]
[BlackElo "2649"]
[TimeControl "180+1"]
[EndTime "9:31:01 PST"]
[Termination "awesomevishesh won by checkmate"]

1. e4 {[%clk 0:03:00.9]} 1... c5 {[%clk 0:02:39.8]} 2. Nf3 {[%clk 0:03:00.6]}
2... d6 {[%clk 0:02:39.9]} 3. Bb5+ {[%clk 0:03:00.1]} 3... Nd7 {[%clk
0:02:39.5]} 4. O-O {[%clk 0:02:59.6]} 4... a6 {[%clk 0:02:39.5]} 5. Bd3 {[%clk
0:02:57.3]} 5... Ngf6 {[%clk 0:02:38.6]} 6. c3 {[%clk 0:02:57]} 6... b5 {[%clk
0:02:36.4]} 7. Bc2 {[%clk 0:02:55.6]} 7... Bb7 {[%clk 0:02:35.3]} 8. Re1 {[%clk
0:02:54.8]} 8... c4 {[%clk 0:02:30.1]} 9. b4 {[%clk 0:02:50]} 9... e5 {[%clk
0:01:48.9]} 10. d4 {[%clk 0:02:43.3]} 10... cxd3 {[%clk 0:01:48.5]} 11. Qxd3
{[%clk 0:02:42.3]} 11... Be7 {[%clk 0:01:48.5]} 12. Nbd2 {[%clk 0:02:35.7]}
12... O-O {[%clk 0:01:48.3]} 13. Nb3 {[%clk 0:02:29.5]} 13... Nb6 {[%clk
0:01:41.1]} 14. Na5 {[%clk 0:02:25]} 14... Qc7 {[%clk 0:01:31.8]} 15. Nxb7
{[%clk 0:02:21.7]} 15... Qxb7 {[%clk 0:01:31.8]} 16. Bb3 {[%clk 0:02:19.7]}
16... Rac8 {[%clk 0:01:30.7]} 17. Nh4 {[%clk 0:02:15.6]} 17... g6 {[%clk
0:01:21.3]} 18. g3 {[%clk 0:02:11.1]} 18... Nc4 {[%clk 0:01:20.3]} 19. a4 {[%clk
0:02:09.5]} 19... d5 {[%clk 0:01:01.4]} 20. exd5 {[%clk 0:02:03.9]} 20... Nxd5
{[%clk 0:01:00.3]} 21. axb5 {[%clk 0:02:03.2]} 21... axb5 {[%clk 0:01:00.1]} 22.
Nf3 {[%clk 0:01:54.2]} 22... Bf6 {[%clk 0:00:46.3]} 23. Bxc4 {[%clk 0:01:33.2]}
23... Rxc4 {[%clk 0:00:41.8]} 24. Bd2 {[%clk 0:01:31.9]} 24... e4 {[%clk
0:00:36.7]} 25. Rxe4 {[%clk 0:01:30.7]} 25... Nxb4 {[%clk 0:00:36.3]} 26. cxb4
{[%clk 0:01:07.2]} 26... Bxa1 {[%clk 0:00:33]} 27. Ng5 {[%clk 0:00:50.7]} 27...
h6 {[%clk 0:00:29.6]} 28. Rxc4 {[%clk 0:00:42]} 28... bxc4 {[%clk 0:00:28.8]}
29. Qb1 {[%clk 0:00:42.1]} 29... Bg7 {[%clk 0:00:18.8]} 30. Ne4 {[%clk
0:00:41.6]} 30... Qd5 {[%clk 0:00:16.8]} 31. Bc3 {[%clk 0:00:39.4]} 31... Bxc3
{[%clk 0:00:16]} 32. Nxc3 {[%clk 0:00:39.3]} 32... Qd3 {[%clk 0:00:16.3]} 33.
Qc1 {[%clk 0:00:38.1]} 33... Rd8 {[%clk 0:00:15.8]} 34. Kg2 {[%clk 0:00:32.1]}
34... Qd2 {[%clk 0:00:15.7]} 35. Qa1 {[%clk 0:00:22.7]} 35... Qd4 {[%clk
0:00:12.2]} 36. Qc1 {[%clk 0:00:18.5]} 36... Kg7 {[%clk 0:00:11.6]} 37. h4
{[%clk 0:00:17.6]} 37... h5 {[%clk 0:00:11.6]} 38. b5 {[%clk 0:00:17.1]} 38...
Rb8 {[%clk 0:00:11.2]} 39. Qa3 {[%clk 0:00:17.1]} 39... Re8 {[%clk 0:00:09.2]}
40. Qb2 {[%clk 0:00:13.9]} 40... Re6 {[%clk 0:00:09.1]} 41. Kf1 {[%clk
0:00:11.6]} 41... Qd3+ {[%clk 0:00:08.9]} 42. Kg2 {[%clk 0:00:11.2]} 42... Kh7
{[%clk 0:00:09.4]} 43. b6 {[%clk 0:00:09.4]} 43... Qd7 {[%clk 0:00:08.8]} 44.
Na4 {[%clk 0:00:08.7]} 44... Qxa4 {[%clk 0:00:06.3]} 45. b7 {[%clk 0:00:08.8]}
45... Qc6+ {[%clk 0:00:05.3]} 46. Kh2 {[%clk 0:00:09]} 46... Re1 {[%clk
0:00:04.5]} 47. f3 {[%clk 0:00:08.5]} 47... Qxf3 {[%clk 0:00:04.6]} 48. Qh8+
{[%clk 0:00:08.3]} 48... Kxh8 {[%clk 0:00:04.7]} 49. b8=Q+ {[%clk 0:00:09.2]}
49... Kh7 {[%clk 0:00:05.2]} 50. Qh8+ {[%clk 0:00:06.7]} 50... Kxh8 {[%clk
0:00:05.3]} 51. g4 {[%clk 0:00:07.4]} 51... Rh1# {[%clk 0:00:05.7]} 0-1